bitfinex/quotes_SOLUSD_20240530
["timestamp","ask_amount","ask_price","bid_price","bid_amount"]
[1717067261209,6.95,166.56,166.55,6.0715]
[1717067261915,27.8,166.64,166.55,6.0715]
[1717067262129,6.95,166.56,166.55,6.0715]
[1717067268623,6.95,166.56,166.53,16.0727]
[1717067268828,6.95,166.56,166.53,6.0707]
[1717067269026,27.8,166.64,166.51,82.0339]
[1717067269330,6.95,166.53,166.51,82.0339]
[1717067269540,6.95,166.53,166.52,6.0707]
[1717067270731,27.8,166.64,166.54,6.5333]
[1717067271039,6.95,166.57,166.55,6.5333]
[1717067271413,27.8,166.64,166.55,6.5333]
[1717067271414,6.95,166.56,166.55,6.5333]
[1717067273615,27.8,166.64,166.55,6.5333]
[1717067273818,6.95,166.57,166.55,6.5333]
[1717067274234,6.95,166.56,166.55,6.5333]
[1717067275440,27.8,166.64,166.55,6.5333]
[1717067275620,27.8,166.64,166.54,6.5827]
[1717067275820,6.95,166.57,166.55,6.5827]
[1717067276113,6.95,166.57,166.54,15.4238]
[1717067276114,6.95,166.58,166.56,6.5827]
[1717067278140,27.8,166.64,166.56,6.5827]
[1717067278337,6.95,166.59,166.57,6.3105]
[1717067278539,6.95,166.58,166.57,6.3105]
[1717067279847,5.7903,166.69,166.57,66.3105]
[1717067280157,5.7903,166.69,166.59,6.1926]
[1717067280351,6.95,166.62,166.6,6.1926]
[1717067280555,5.7903,166.69,166.6,6.1926]
[1717067280866,27.8,166.72,166.6,6.1926]
[1717067280867,17.31683507,166.7,166.6,6.1926]
[1717067281042,6.95,166.64,166.61,60.0]
[1717067281237,6.95,166.65,166.62,6.1926]
[1717067281825,27.8,166.72,166.62,6.1926]
[1717067282023,6.95,166.64,166.62,6.1926]
[1717067283845,6.95,166.64,166.62,6.3413]
[1717067284154,27.8,166.72,166.61,82.47]
[1717067284364,6.95,166.65,166.61,76.1287]
[1717067284528,6.95,166.65,166.62,6.3413]
[1717067286649,6.95,166.65,166.63,60.0]
[1717067286843,6.95,166.65,166.63,66.3921]
[1717067287171,5.7903,166.77,166.65,60.0]
[1717067287347,6.95,166.68,166.65,60.0]
[1717067287559,6.95,166.68,166.65,66.3921]
[1717067288069,27.8,166.72,166.65,66.3921]
[1717067288258,5.7903,166.77,166.65,66.3921]
[1717067288435,6.95,166.68,166.65,6.3921]
[1717067288639,6.95,166.66,166.63,6.3315]
[1717067288840,6.95,166.64,166.63,6.3315]
[1717067289247,6.95,166.65,166.63,6.3315]
[1717067290981,6.95,166.66,166.63,6.3315]
[1717067291158,27.8,166.72,166.63,6.3315]
[1717067291538,6.95,166.66,166.62,21.7039]
[1717067291844,6.95,166.66,166.62,15.2297]
[1717067292163,6.95,166.66,166.64,6.2406]
[1717067295182,10.64935774,166.77,166.64,6.2406]
[1717067295375,27.8,166.72,166.64,6.2406]
[1717067295681,6.95,166.66,166.64,6.2406]
[1717067296162,27.8,166.72,166.64,6.2406]
[1717067296382,6.95,166.67,166.64,6.2406]
[1717067300547,27.8,166.72,166.64,6.2406]
[1717067300851,6.95,166.67,166.64,6.2406]
[1717067303479,6.95,166.66,166.64,6.2406]
[1717067303777,6.95,166.65,166.6,6.1626]
[1717067303947,6.95,166.62,166.6,6.1626]
[1717067304359,6.95,166.62,166.6,66.1626]
[1717067304567,6.95,166.63,166.6,66.1626]
[1717067304875,6.95,166.63,166.6,6.1626]
[1717067305585,5.7903,166.71,166.62,60.0]
[1717067305790,6.95,166.66,166.62,66.6159]
[1717067306585,6.95,166.66,166.62,60.0]
[1717067306755,5.7903,166.75,166.64,60.0]
[1717067306950,6.95,166.69,166.65,6.6159]
[1717067307149,5.7903,166.75,166.65,6.6159]
[1717067307573,6.95,166.69,166.65,6.6159]
[1717067308476,6.95,166.68,166.65,6.6159]
[1717067309366,6.95,166.72,166.65,6.6159]
[1717067309572,6.95,166.67,166.65,6.6159]
[1717067311583,27.8,166.72,166.66,60.0]
[1717067311876,6.95,166.69,166.66,66.2141]
[1717067313578,4.87992859,166.77,166.66,66.2141]
[1717067313780,15.7885,166.78,166.66,66.2141]
[1717067313961,6.95,166.69,166.66,66.2141]
[1717067314378,6.95,166.69,166.66,6.2141]
[1717067314674,20.52173253,166.78,166.66,6.2141]
[1717067314882,6.95,166.67,166.66,6.2141]
[1717067315877,6.95,166.72,166.66,6.2141]
[1717067316175,27.8,166.72,166.66,6.2141]
[1717067318881,27.8,166.72,166.64,60.0]
[1717067320989,27.8,166.72,166.63,15.4891]
[1717067321286,27.8,166.72,166.64,6.1913]
[1717067321287,6.95,166.66,166.64,6.1913]
[1717067322191,6.95,166.65,166.64,6.1913]
[1717067322566,6.95,166.65,166.62,60.0]
[1717067323063,6.95,166.65,166.63,6.0289]
[1717067325284,27.8,166.72,166.63,6.0289]
[1717067325691,6.95,166.66,166.63,6.0289]
[1717067325993,6.95,166.67,166.64,60.0]
[1717067326188,6.95,166.67,166.64,66.3934]
[1717067327691,27.8,166.72,166.64,66.3934]
[1717067327884,6.95,166.67,166.65,6.6612]
[1717067328980,6.95,166.67,166.65,6.59036964]
[1717067332184,27.8,166.72,166.62,6.3984]
[1717067332484,6.95,166.66,166.62,6.3984]
[1717067333077,6.95,166.66,166.63,60.0]
[1717067333285,17.31389929,166.71,166.63,66.4165]
[1717067333597,6.95,166.66,166.64,6.4165]
[1717067334383,6.95,166.66,166.63,60.0]
[1717067334999,17.31319135,166.71,166.63,60.0]
[1717067335196,6.95,166.65,166.63,60.0]
[1717067336501,17.31355608,166.71,166.63,60.0]
[1717067336703,6.95,166.66,166.63,66.4087]
[1717067340793,6.95,166.64,166.61,66.3582]
[1717067344885,6.95,166.65,166.61,66.3582]
[1717067345305,6.95,166.65,166.61,68.5789]
[1717067345503,6.95,166.65,166.62,6.5037]
[1717067345714,17.31417396,166.71,166.62,8.7243]
[1717067346012,6.95,166.66,166.62,8.7243]
[1717067346591,6.95,166.66,166.63,60.0]
[1717067347216,5.8612,166.73,166.65,60.0]
[1717067347422,6.95,166.68,166.65,60.0]
[1717067348114,12.12574477,166.79,166.67,60.0]
[1717067348295,6.95,166.72,166.68,6.5647]
[1717067348495,17.31222644,166.76,166.7,60.0]
[1717067348698,5.8612,166.83,166.72,60.0]
[1717067348911,5.8612,166.83,166.74,60.0]
[1717067349420,5.8612,166.83,166.74,66.5647]
[1717067349825,6.95,166.78,166.74,66.5647]
[1717067351225,5.8612,166.83,166.74,66.5647]
[1717067351226,6.95,166.77,166.74,66.5647]
[1717067354524,6.95,166.76,166.74,6.5647]
[1717067354824,6.95,166.75,166.72,60.0]
[1717067355600,5.8612,166.83,166.72,60.0]
[1717067355801,6.95,166.75,166.72,66.1022]
[1717067357005,6.95,166.76,166.74,60.0]
[1717067362044,16.3903,166.86,166.76,60.0]
[1717067362415,6.95,166.77,166.76,60.0]
[1717067373243,6.95,166.77,166.74,66.3865]
[1717067373467,6.95,166.75,166.72,60.0]
[1717067373742,6.95,166.75,166.72,66.2219]
[1717067374427,6.95,166.75,166.74,60.0]
[1717067375128,27.8,166.8,166.74,60.0]
[1717067376021,21.2031825,166.86,166.74,60.0]
[1717067376224,5.8612,166.92,166.79,60.0]
[1717067376449,27.8,166.88,166.8,2.2182]
[1717067376623,5.8612,166.92,166.82,18.13]
[1717067376823,5.8612,166.92,166.84,60.0]
[1717067377126,15.7348,166.94,166.84,60.0]
[1717067377127,6.95,166.87,166.84,60.0]
[1717067377431,6.95,166.87,166.86,60.0]
[1717067377837,4.86022139,166.95,166.86,60.0]
[1717067378151,6.95,166.87,166.84,60.0]
[1717067378325,6.95,166.86,166.84,60.0]
[1717067378647,10.72142139,166.95,166.84,60.0]
[1717067378827,6.95,166.86,166.84,60.0]
[1717067380254,5.8612,166.95,166.84,60.0]
[1717067380561,6.95,166.86,166.84,60.0]
[1717067381732,6.95,166.87,166.86,60.0]
[1717067382040,6.95,166.88,166.86,60.0]
[1717067382363,5.8612,166.95,166.86,60.0]
[1717067382538,5.8612,166.95,166.84,66.1994]
[1717067382539,6.95,166.87,166.84,66.1994]
[1717067382855,6.95,166.86,166.84,66.1994]
[1717067383745,5.8612,166.95,166.84,66.1994]
[1717067383950,6.95,166.86,166.84,66.1994]
[1717067386039,6.95,166.86,166.84,60.0]
[1717067386221,6.95,166.85,166.8,60.0]
[1717067386423,6.95,166.81,166.76,60.0]
[1717067386629,6.95,166.81,166.77,6.5486]
[1717067386830,27.8,166.88,166.77,6.5486]
[1717067386831,6.95,166.8,166.77,6.5486]
[1717067387244,6.95,166.79,166.77,6.5486]
[1717067387444,6.95,166.79,166.76,60.0]
[1717067387747,6.95,166.77,166.73,6.5486]
[1717067387961,6.95,166.8,166.73,6.5486]
[1717067388249,6.95,166.75,166.73,6.5486]
[1717067388743,6.95,166.75,166.74,60.0]
[1717067388922,6.95,166.75,166.72,60.0]
[1717067389122,27.8,166.8,166.72,60.0]
[1717067389123,6.95,166.74,166.72,60.0]
[1717067390143,6.95,166.75,166.72,60.0]
[1717067390346,6.95,166.75,166.74,60.0]
[1717067390545,6.95,166.75,166.68,60.0]
[1717067390846,6.95,166.69,166.66,60.0]
[1717067391053,5.8612,166.79,166.66,60.0]
[1717067391054,6.95,166.68,166.66,60.0]
[1717067393251,6.95,166.72,166.66,60.0]
[1717067393453,6.95,166.67,166.66,60.0]
[1717067394044,6.95,166.72,166.66,60.0]
[1717067394253,6.95,166.68,166.66,60.0]
[1717067395364,5.8612,166.79,166.68,60.0]
[1717067395563,6.95,166.7,166.68,60.0]
[1717067396242,5.8612,166.79,166.68,60.0]
[1717067396443,6.95,166.71,166.68,60.0]
[1717067396639,6.95,166.72,166.68,60.0]
[1717067397542,6.95,166.71,166.68,60.0]
[1717067398062,6.95,166.7,166.68,60.0]
[1717067400358,6.95,166.7,166.66,78.13]
[1717067400556,6.95,166.68,166.66,60.0]
[1717067401057,6.95,166.69,166.66,66.3412]
[1717067401660,5.8612,166.79,166.68,60.0]
[1717067401844,6.95,166.7,166.68,60.0]
[1717067402345,6.95,166.7,166.68,66.4706]
[1717067402543,6.95,166.7,166.66,78.13]
[1717067402858,6.95,166.7,166.66,84.5435]
[1717067403064,6.95,166.69,166.66,84.5435]
[1717067404436,6.95,166.68,166.66,66.4135]
[1717067404948,6.95,166.72,166.64,60.0]
[1717067405149,6.95,166.65,166.62,60.0]
[1717067406060,6.95,166.64,166.62,60.0]
[1717067412674,6.95,166.63,166.58,60.0]
[1717067412856,6.95,166.59,166.56,66.5026]
[1717067413202,6.95,166.58,166.54,448.7]
[1717067413347,6.95,166.57,166.54,448.7]
[1717067413547,6.95,166.57,166.54,466.83]
[1717067415753,6.95,166.57,166.54,448.7]
[1717067416278,6.95,166.56,166.54,448.7]
[1717067417387,6.95,166.55,166.54,388.7]
[1717067417558,33.6612,166.64,166.54,388.7]
[1717067417559,6.95,166.56,166.54,448.7]
[1717067417959,33.6612,166.64,166.54,448.7]
[1717067418175,6.95,166.56,166.54,448.7]
[1717067418678,6.95,166.57,166.56,60.0]
[1717067419962,5.8612,166.69,166.58,60.0]
[1717067420163,6.95,166.6,166.58,60.0]
[1717067420369,6.95,166.61,166.6,60.0]
[1717067420574,6.95,166.61,166.58,78.13]
[1717067420864,6.95,166.6,166.58,78.13]
[1717067421061,6.95,166.6,166.58,60.0]
[1717067421375,6.95,166.6,166.56,78.13]
[1717067421678,6.95,166.59,166.56,78.13]
[1717067421877,6.95,166.58,166.56,78.13]
[1717067422763,6.95,166.58,166.56,60.0]
[1717067422964,6.95,166.57,166.55,388.7]
[1717067423271,6.95,166.56,166.55,388.7]
[1717067424374,20.81,166.6,166.55,388.7]
[1717067424575,5.8612,166.59,166.55,388.7]
[1717067424881,20.81,166.6,166.48,16.4866]
[1717067424882,20.81,166.57,166.5,60.0]
[1717067429079,20.81,166.54,166.47,0.0864016]
[1717067429284,5.8612,166.5,166.47,0.0864016]
[1717067431890,20.81,166.51,166.47,0.0864016]
[1717067433270,26.6712,166.51,166.47,0.0864016]
[1717067434798,20.81,166.51,166.47,0.0864016]
[1717067436990,20.81,166.54,166.48,60.0]
[1717067437175,20.81,166.54,166.47,0.0864016]
[1717067444801,20.81,166.54,166.48,60.0]
[1717067446408,6.94,166.49,166.48,60.0]
[1717067446903,6.94,166.49,166.47,0.0864016]
[1717067447108,6.94,166.48,166.47,0.0864016]
[1717067448214,6.94,166.52,166.51,60.0]
[1717067450521,27.76,166.56,166.47,24.8063016]
[1717067450522,20.82,166.56,166.49,78.13]
[1717067452498,20.82,166.56,166.51,60.0]
[1717067453700,20.82,166.56,166.49,60.0]
[1717067453904,20.82,166.56,166.47,66.6763016]
[1717067454100,20.82,166.56,166.49,60.0]
[1717067454297,5.8612,166.59,166.49,60.0]
[1717067454504,20.82,166.56,166.49,60.0]
[1717067455513,20.82,166.56,166.51,60.0]
[1717067455891,5.8612,166.59,166.51,60.0]
[1717067456092,20.82,166.58,166.51,60.0]
[1717067462026,20.82,166.58,166.53,60.0]
[1717067462320,20.82,166.61,166.55,60.0]
[1717067464627,20.82,166.61,166.57,60.0]
[1717067464928,20.82,166.64,166.57,60.0]
[1717067470336,6.93,166.59,166.58,6.3243]
[1717067472516,27.72,166.64,166.6,60.0]
[1717067472829,6.93,166.61,166.6,60.0]
[1717067473232,6.93,166.61,166.6,66.4417]
[1717067473431,27.72,166.64,166.6,66.4417]
[1717067473618,6.93,166.61,166.6,66.4417]
[1717067474243,16.1404,166.71,166.62,60.0]
[1717067474544,6.93,166.63,166.62,60.0]
[1717067474925,27.72,166.72,166.62,60.0]
[1717067475124,6.93,166.63,166.62,60.0]
[1717067477925,6.93,166.63,166.6,66.4417]
[1717067478123,6.93,166.61,166.6,66.4417]
[1717067478345,6.93,166.62,166.6,66.4417]
[1717067479855,6.93,166.61,166.58,60.0]
[1717067480024,27.72,166.64,166.58,60.0]
[1717067480025,6.93,166.59,166.58,60.0]
[1717067486828,6.93,166.59,166.56,60.0]
[1717067487035,6.93,166.57,166.56,60.0]
[1717067490525,27.72,166.64,166.56,60.0]
[1717067490730,6.93,166.58,166.56,60.0]
[1717067492539,27.72,166.64,166.56,60.0]
[1717067492862,6.93,166.57,166.56,60.0]
[1717067493963,27.72,166.64,166.56,60.0]
[1717067494155,6.93,166.57,166.56,60.0]
[1717067495236,6.93,166.57,166.52,78.13]
[1717067495438,6.93,166.54,166.52,78.13]
[1717067495637,6.93,166.53,166.52,78.13]
[1717067495853,15.0767,166.73,166.6,6.4355]
[1717067496052,27.72,166.72,166.61,60.0]
[1717067496378,6.93,166.65,166.63,60.0]
[1717067501960,6.93,166.64,166.61,78.13]
[1717067503273,6.93,166.64,166.63,60.0]
[1717067506187,6.93,166.64,166.61,78.13]
[1717067506374,6.93,166.63,166.61,78.13]
[1717067509471,32.50377169,166.72,166.64,60.0]
[1717067509472,27.72,166.72,166.64,60.0]
[1717067509655,6.93,166.65,166.64,60.0]
[1717067516586,27.72,166.72,166.64,60.0]
[1717067516765,6.93,166.65,166.64,60.0]
[1717067518966,6.93,166.65,166.62,60.0]
[1717067519286,6.93,166.64,166.62,60.0]
[1717067520663,27.72,166.72,166.62,60.0]
[1717067520973,6.93,166.64,166.62,60.0]
[1717067523467,27.72,166.72,166.64,60.0]
[1717067523664,6.93,166.66,166.64,60.0]
[1717067523886,6.93,166.66,166.64,78.13]
[1717067524068,6.93,166.67,166.66,60.0]
[1717067525582,6.93,166.67,166.62,78.13]
[1717067525787,6.93,166.65,166.62,78.13]
[1717067526185,6.93,166.64,166.62,78.13]
[1717067526382,6.93,166.63,166.62,78.13]
[1717067527059,6.93,166.63,166.6,60.0]
[1717067527264,6.93,166.62,166.6,60.0]
[1717067529096,27.72,166.72,166.6,78.13]
[1717067529389,6.93,166.64,166.62,60.0]
[1717067530106,15.0767,166.73,166.64,60.0]
[1717067530285,6.3689,166.74,166.66,60.0]
[1717067530471,6.93,166.68,166.66,60.0]
[1717067530780,6.93,166.67,166.66,60.0]
[1717067532109,27.72,166.72,166.66,60.0]
[1717067532278,27.72,166.72,166.68,60.0]
[1717067532474,16.241,166.77,166.68,60.0]
[1717067532674,6.93,166.69,166.68,60.0]
[1717067538901,27.72,166.72,166.68,60.0]
[1717067539105,27.72,166.72,166.66,60.0]
[1717067539282,6.93,166.67,166.61,60.0]
[1717067539476,6.93,166.63,166.61,60.0]
[1717067539681,6.93,166.62,166.61,60.0]
[1717067540600,6.93,166.62,166.59,60.0]
[1717067540802,6.93,166.61,166.59,60.0]
[1717067540980,6.0516,166.72,166.63,60.0]
[1717067541314,75.84424857,166.75,166.6,6.1539]
[1717067541315,16.294,166.75,166.67,60.0]
[1717067541489,6.93,166.68,166.67,60.0]
[1717067542297,6.93,166.69,166.67,60.0]
[1717067543098,6.93,166.71,166.69,60.0]
[1717067543492,6.93,166.72,166.69,60.0]
[1717067544595,51.76662,166.8,166.78,60.0]
[1717067544791,24.04662,166.8,166.78,60.0]
[1717067544994,6.93,166.79,166.78,60.0]
[1717067545399,6.93,166.79,166.76,60.0]
[1717067545598,6.93,166.78,166.77,18.13]
[1717067545911,6.93,166.79,166.78,60.0]
[1717067547197,27.72,166.88,166.78,60.0]
[1717067547505,6.93,166.79,166.78,60.0]
[1717067548508,6.93,166.79,166.74,60.0]
[1717067548691,6.93,166.75,166.72,60.0]
[1717067548892,6.93,166.74,166.72,60.0]
[1717067550405,6.93,166.74,166.72,78.13]
[1717067550603,27.72,166.8,166.72,78.13]
[1717067550802,6.93,166.75,166.72,78.13]
[1717067551612,27.72,166.8,166.72,78.13]
[1717067551814,6.93,166.75,166.72,78.13]
[1717067552199,27.72,166.8,166.74,60.0]
[1717067552512,6.5319,166.83,166.74,60.0]
[1717067552714,6.93,166.75,166.74,60.0]
[1717067552915,6.5319,166.83,166.76,60.0]
[1717067553294,6.93,166.78,166.76,60.0]
[1717067553494,6.502,166.86,166.76,60.0]
[1717067553694,6.93,166.79,166.76,60.0]
[1717067553890,6.502,166.86,166.76,60.0]
[1717067554086,6.93,166.79,166.76,60.0]
[1717067554296,6.502,166.86,166.76,60.0]
[1717067554497,6.93,166.79,166.76,60.0]
[1717067555314,6.93,166.78,166.76,60.0]
[1717067556324,6.502,166.86,166.76,60.0]
[1717067556609,6.93,166.78,166.76,60.0]
[1717067557606,6.93,166.77,166.76,60.0]
[1717067560305,6.502,166.86,166.76,60.0]
[1717067560507,6.93,166.78,166.76,60.0]
[1717067561196,6.93,166.8,166.78,78.13]
[1717067561397,6.502,166.86,166.78,78.13]
[1717067561721,6.93,166.81,166.8,60.0]
[1717067563796,6.93,166.81,166.78,78.13]
[1717067564014,6.93,166.8,166.78,78.13]
[1717067564417,6.93,166.79,166.78,78.13]
[1717067564726,6.93,166.8,166.78,78.13]
[1717067565423,6.93,166.8,166.78,60.0]
[1717067565606,6.93,166.79,166.78,60.0]
[1717067566320,6.93,166.8,166.78,60.0]
[1717067566819,27.72,166.88,166.78,60.0]
[1717067567006,6.93,166.8,166.78,60.0]
[1717067569026,27.72,166.88,166.8,60.0]
[1717067569231,6.93,166.81,166.8,60.0]
[1717067570002,27.72,166.88,166.82,60.0]
[1717067570199,6.93,166.83,166.82,60.0]
[1717067570635,6.93,166.83,166.8,18.01]
[1717067570636,6.93,166.83,166.8,78.01]
[1717067570801,6.93,166.81,166.8,78.01]
[1717067573618,6.93,166.82,166.81,60.0]
[1717067576835,6.0891,166.95,166.87,60.0]
[1717067577043,6.93,166.88,166.85,60.0]
[1717067577226,6.93,166.86,166.85,60.0]
[1717067577620,6.0891,166.95,166.85,60.0]
[1717067577821,6.93,166.86,166.85,60.0]
[1717067578238,10.97432798,166.95,166.85,60.0]
[1717067578436,6.93,166.86,166.85,60.0]
[1717067581422,6.0891,166.95,166.85,60.0]
[1717067581627,6.93,166.86,166.85,60.0]
[1717067582754,6.0891,166.95,166.85,60.0]
[1717067582933,6.93,166.86,166.85,60.0]
[1717067584457,10.8983206,166.95,166.85,60.0]
[1717067584627,6.93,166.86,166.85,60.0]
[1717067587144,6.93,166.86,166.85,60.0]
[1717067587922,10.8983206,166.95,166.85,60.0]
[1717067587923,6.0891,166.95,166.87,60.0]
[1717067588159,6.93,166.89,166.87,60.0]
[1717067588330,6.0891,166.95,166.89,60.0]
[1717067588524,6.93,166.91,166.89,60.0]
[1717067589441,5.73,166.91,166.89,60.0]
[1717067589826,0.8265704,166.97,166.89,60.0]
[1717067590250,27.72,166.96,166.89,60.0]
[1717067590432,6.93,166.91,166.89,60.0]
[1717067590938,6.93,166.9,166.89,60.0]
[1717067591140,6.93,166.9,166.87,60.0]
[1717067591342,6.93,166.89,166.87,60.0]
[1717067593535,27.72,166.96,166.91,60.0]
[1717067593851,4.07869838,166.92,166.91,60.0]
[1717067595247,27.72,166.96,166.91,60.0]
[1717067595453,6.93,166.92,166.9,60.0]
[1717067595652,6.93,166.91,166.9,60.0]
[1717067599343,6.93,166.92,166.9,60.0]
[1717067600134,27.72,166.96,166.9,60.0]
[1717067600335,0.8265704,166.97,166.92,60.0]
[1717067600557,6.93,166.93,166.92,60.0]
[1717067600758,0.8265704,166.97,166.92,60.0]
[1717067600935,0.8265704,166.97,166.93,18.01]
[1717067601136,6.93,166.95,166.94,60.0]
[1717067601338,0.8265704,166.97,166.94,114.3]
[1717067601537,0.8265704,166.97,166.96,123.446]
[1717067605161,6.5786,167.09,167.0,60.0]
[1717067605371,6.93,167.01,167.0,60.0]
[1717067605744,6.5786,167.09,167.0,60.0]
[1717067605947,6.93,167.01,167.0,60.0]
[1717067606250,6.93,167.02,167.0,60.0]
[1717067607570,6.5786,167.09,167.0,60.0]
[1717067607860,6.5786,167.09,167.02,60.0]
[1717067608449,6.93,167.04,167.02,60.0]
[1717067609339,49.07446379,167.12,167.02,60.0]
[1717067609546,6.93,167.04,167.02,60.0]
[1717067609760,27.72,167.12,167.04,60.0]
[1717067609968,6.93,167.05,167.02,60.0]
[1717067610167,6.93,167.04,167.02,60.0]
[1717067610368,6.93,167.03,167.02,60.0]
[1717067610773,6.93,167.03,167.0,60.0]
[1717067610957,16.1203,167.11,167.0,60.0]
[1717067611156,27.72,167.12,167.02,60.0]
[1717067611360,6.93,167.04,167.02,60.0]
[1717067611557,6.93,167.04,167.03,6.3837]
[1717067612168,6.93,167.04,167.02,60.0]
[1717067612374,27.72,167.12,167.02,60.0]
[1717067612677,6.93,167.04,167.02,60.0]
[1717067612880,27.72,167.12,167.03,6.1308]
[1717067613181,6.93,167.04,167.03,6.1308]
[1717067613360,27.72,167.12,167.04,60.0]
[1717067613568,6.93,167.05,167.04,66.6045]
[1717067614482,6.93,167.05,167.04,60.0]
[1717067615866,27.72,167.12,167.04,60.0]
[1717067616179,6.93,167.05,167.04,60.0]
[1717067618566,27.72,167.12,167.04,60.0]
[1717067618891,6.93,167.05,167.04,60.0]
[1717067619488,27.72,167.12,167.04,60.0]
[1717067619980,6.93,167.05,167.04,60.0]
[1717067620984,27.72,167.12,167.04,60.0]
[1717067621288,6.93,167.05,167.04,60.0]
[1717067622373,0.8265704,167.14,167.09,60.0]
[1717067622562,0.8265704,167.14,167.11,60.0]
[1717067623072,0.8265704,167.14,167.11,66.0263]
[1717067623387,6.93,167.12,167.11,60.0]
[1717067623562,0.8265704,167.14,167.13,60.0]
[1717067623762,7.7565704,167.14,167.13,60.0]
[1717067623970,0.8265704,167.14,167.13,60.0]
[1717067624284,7.7565704,167.14,167.13,60.0]
[1717067624580,0.8265704,167.14,167.13,60.0]
[1717067624785,0.8265704,167.14,167.13,84.1623]
[1717067627287,7.7565704,167.14,167.13,78.01]
[1717067627488,7.7565704,167.14,167.13,60.0]
[1717067627784,7.7565704,167.14,167.11,78.01]
[1717067627965,0.8265704,167.14,167.13,60.0]
[1717067628477,7.7565704,167.14,167.13,60.0]
[1717067628778,7.7565704,167.14,167.11,60.0]
[1717067628969,0.8265704,167.14,167.13,60.0]
[1717067629165,7.7565704,167.14,167.13,60.0]
[1717067630301,0.8265704,167.14,167.13,60.0]
[1717067630485,7.7565704,167.14,167.13,60.0]
[1717067631801,0.8265704,167.14,167.13,60.0]
[1717067632271,7.7565704,167.14,167.13,60.0]
[1717067632680,0.8265704,167.14,167.13,60.0]
[1717067632879,7.7565704,167.14,167.13,60.0]
[1717067633083,7.7565704,167.14,167.13,78.01]
[1717067633387,0.8265704,167.14,167.13,100.6957]
[1717067635899,0.8265704,167.14,167.13,84.3372]
[1717067637502,0.8265704,167.14,167.13,78.01]
[1717067637705,7.7565704,167.14,167.13,78.01]
[1717067640103,7.7565704,167.14,167.13,60.0]
[1717067641094,7.7565704,167.14,167.11,60.0]